bitfinex/quotes_SOLUSD_20240827
["timestamp","ask_amount","ask_price","bid_price","bid_amount"]
[1724801983790,20.25098,147.98,147.9,33.9403812]
[1724801984165,16.4253,147.97,147.9,33.9403812]
[1724801984481,6.3051,147.95,147.88,33.9403812]
[1724801985586,6.3051,147.95,147.89,45.0]
[1724801985767,0.12549,147.94,147.88,33.9403812]
[1724801988264,6.3051,147.95,147.89,1.35224793]
[1724801988464,6.3051,147.95,147.88,33.9403812]
[1724801988966,6.3051,147.95,147.9,33.9403812]
[1724801992883,6.3051,147.95,147.88,33.9403812]
[1724801994382,6.3051,147.95,147.89,1.35221813]
[1724801995377,6.3051,147.95,147.88,33.9403812]
[1724801995378,6.3051,147.95,147.9,33.9403812]
[1724801995582,6.3051,147.95,147.94,33.9403812]
[1724801995767,16.4253,147.97,147.94,33.9403812]
[1724801997783,16.4253,147.97,147.92,33.9403812]
[1724801999170,16.4253,147.97,147.93,45.0]
[1724801999373,16.4253,147.97,147.94,33.9403812]
[1724802001295,16.4253,147.97,147.93,45.0]
[1724802002590,6.4524,147.99,147.96,33.9403812]
[1724802002797,16.0928,148.01,147.98,33.9403812]
[1724802003175,16.0928,148.01,147.93,45.0]
[1724802003485,16.0928,148.01,147.93,78.9403812]
[1724802003995,16.0928,148.01,147.95,33.9403812]
[1724802005396,16.0928,148.01,147.93,78.9403812]
[1724802005902,0.25098,148.0,147.93,45.0]
[1724802006099,0.25098,148.0,147.93,33.9403812]
[1724802006404,16.0928,148.01,147.95,33.9403812]
[1724802010896,16.0928,148.01,147.93,33.9403812]
[1724802011096,16.0928,148.01,147.94,45.0]
[1724802011905,0.25098,148.0,147.93,33.9403812]
[1724802015977,6.4354,147.99,147.91,33.9403812]
[1724802019606,6.4354,147.99,147.92,46.34914447]
[1724802019808,6.4354,147.99,147.93,1.34905326]
[1724802021909,6.4354,147.99,147.92,45.0]
[1724802022114,6.4354,147.99,147.93,13.52842521]
[1724802022607,6.4354,147.99,147.93,14.88014869]
[1724802024106,6.4354,147.99,147.93,13.52842521]
[1724802024513,6.4354,147.99,147.95,13.52842521]
[1724802024808,6.4354,147.99,147.97,13.52842521]
[1724802025016,16.0928,148.01,147.97,13.52842521]
[1724802025394,16.0928,148.01,147.99,13.52842521]
[1724802026085,6.4726,148.03,147.99,13.52842521]
[1724802026285,15.0306,148.05,148.01,13.52842521]
[1724802028101,15.0306,148.05,147.99,35.13873254]
[1724802028804,15.0306,148.05,147.97,33.78751857]
[1724802029005,15.0306,148.05,147.98,45.0]
[1724802029946,0.25098,148.04,147.97,33.78751857]
[1724802030217,6.421,148.03,147.95,33.78751857]
[1724802033924,0.25098,148.04,147.89,7.07050032]
[1724802033925,6.0939,148.01,147.89,7.07050032]
[1724802034093,15.0768,148.0,147.89,33.78751857]
[1724802034421,6.0472,147.98,147.89,33.78751857]
[1724802034606,0.25098,147.97,147.89,33.78751857]
[1724802036315,0.25098,147.97,147.9,45.0]
[1724802036514,0.2121454,147.97,147.9,45.0]
[1724802036911,6.0472,147.98,147.91,33.78751857]
[1724802037101,6.0472,147.98,147.93,33.78751857]
[1724802037300,6.0472,147.98,147.94,1.35174459]
[1724802038420,6.0472,147.98,147.95,33.78751857]
[1724802038597,6.0472,147.98,147.96,1.35154514]
[1724802039215,15.0768,148.0,147.96,1.35154514]
[1724802039712,15.0768,148.0,147.95,33.78751857]
[1724802040516,15.0768,148.0,147.91,33.78751857]
[1724802040517,15.0768,148.0,147.92,6.21957715]
[1724802040821,15.0768,148.0,147.93,45.0]
[1724802041215,15.0768,148.0,147.95,33.78751857]
[1724802041421,15.0768,148.0,147.96,0.614432]
[1724802041804,15.0768,148.0,147.96,1.35147883]
[1724802043120,6.6392,148.02,147.95,33.78751857]
[1724802043310,6.6392,148.02,147.97,33.78751857]
[1724802043701,6.6392,148.02,147.98,45.0]
[1724802044101,6.6392,148.02,147.97,33.78751857]
[1724802044599,6.6392,148.02,147.98,45.0]
[1724802046223,16.6212,148.04,147.99,0.81004785]
[1724802046527,16.6212,148.04,147.99,35.13872281]
[1724802048303,6.4744,148.06,148.01,33.78751857]
[1724802048509,6.4744,148.06,148.02,45.0]
[1724802049426,16.2169,148.1,148.03,33.78751857]
[1724802049626,16.2169,148.1,148.05,33.78751857]
[1724802050029,16.2169,148.1,148.06,45.0]
[1724802051732,16.2169,148.1,148.03,33.78751857]
[1724802051935,16.2169,148.1,148.04,45.0]
[1724802052614,16.2169,148.1,148.01,33.78751857]
[1724802052814,16.2169,148.1,147.99,33.78751857]
[1724802052815,0.12549,148.09,147.99,33.78751857]
[1724802053019,0.25098,148.09,147.97,15.3257]
[1724802053233,0.25098,148.09,147.99,33.78751857]
[1724802054809,0.25098,148.09,147.93,24.95067324]
[1724802054810,6.0728,148.08,147.93,24.95067324]
[1724802055013,0.25098,148.07,147.97,33.78751857]
[1724802055313,0.25098,148.07,147.98,45.0]
[1724802056617,16.4855,148.06,147.98,45.0]
[1724802059537,16.4855,148.06,148.01,33.78751857]
[1724802059741,16.4855,148.06,148.02,45.0]
[1724802060240,16.4855,148.06,148.03,35.1383682]
[1724802060726,6.0728,148.08,148.03,33.78751857]
[1724802060945,6.0728,148.08,148.04,45.0]
[1724802061741,6.0728,148.08,148.01,33.78751857]
[1724802062120,6.0728,148.08,148.05,33.78751857]
[1724802062317,15.9644,148.1,148.05,33.78751857]
[1724802062530,15.9644,148.1,148.06,0.50485519]
[1724802062732,6.1395,148.12,148.07,33.78751857]
[1724802063522,6.1395,148.12,148.08,45.0]
[1724802066527,6.1395,148.12,148.07,33.78751857]
[1724802068938,6.1395,148.12,148.0,15.2744]
[1724802069148,0.25098,148.11,147.99,5.43768916]
[1724802069361,6.0319,148.09,148.0,33.78751857]
[1724802069531,0.25098,148.08,148.0,33.78751857]
[1724802069844,0.25098,148.08,147.98,39.99523327]
[1724802070045,0.25098,148.08,147.98,33.78751857]
[1724802071341,0.25098,148.08,148.0,33.78751857]
[1724802072120,0.25098,148.08,148.02,33.78751857]
[1724802072328,6.0319,148.09,148.02,33.78751857]
[1724802072942,6.0319,148.09,148.03,1.34375233]
[1724802075248,6.0319,148.09,148.04,33.78751857]
[1724802075943,6.0319,148.09,148.03,45.0]
[1724802078828,6.0319,148.09,148.02,33.78751857]
[1724802079030,6.0319,148.09,148.0,33.78751857]
[1724802079228,6.0319,148.09,148.01,45.0]
[1724802079664,0.25098,148.08,148.0,33.78751857]
[1724802081661,6.0319,148.09,148.02,33.78751857]
[1724802081858,6.0319,148.09,148.03,1.34811938]
[1724802082035,6.0319,148.09,148.02,33.78751857]
[1724802082352,6.0319,148.09,148.01,45.0]
[1724802082552,0.25098,148.08,148.0,33.78751857]
[1724802083639,6.0319,148.09,148.02,33.78751857]
[1724802083859,6.0319,148.09,148.04,33.78751857]
[1724802084038,6.0319,148.09,148.02,33.78751857]
[1724802084660,6.0319,148.09,148.03,1.35063274]
[1724802088241,6.0319,148.09,148.04,33.78751857]
[1724802088441,6.0319,148.09,148.05,45.0]
[1724802091541,6.0319,148.09,148.0,7.06631878]
[1724802091745,6.0319,148.09,148.0,40.85383735]
[1724802091944,6.0319,148.09,148.02,33.78751857]
[1724802093553,6.0319,148.09,148.03,0.61695799]
[1724802094268,6.0319,148.09,148.02,33.78751857]
[1724802095066,6.0319,148.09,148.01,40.0046262]
[1724802095266,6.0319,148.09,148.02,50.44860869]
[1724802095556,6.0319,148.09,148.02,45.0]
[1724802095767,0.25098,148.08,148.02,1.35103041]
[1724802095944,6.0319,148.09,148.02,1.35103041]
[1724802097838,6.0319,148.09,148.01,33.78751857]
[1724802098271,6.0319,148.09,148.02,45.0]
[1724802100059,6.0319,148.09,148.02,58.5109733]
[1724802100250,6.0319,148.09,148.02,13.5109733]
[1724802100445,0.25098,148.08,148.02,13.5109733]
[1724802104162,22.8408,148.07,147.98,13.5109733]
[1724802104349,0.12549,148.06,147.99,1.94948156]
[1724802104570,0.25098,148.06,147.98,13.5109733]
[1724802105171,0.25098,148.06,148.0,13.5109733]
[1724802106669,0.25098,148.06,147.98,13.5109733]
[1724802107453,21.8673,148.05,147.97,13.5109733]
[1724802107653,0.25098,148.04,147.97,13.5109733]
[1724802107879,0.25098,148.04,147.95,7.06883667]
[1724802108371,0.25098,148.04,147.96,13.5109733]
[1724802109466,0.25098,148.04,147.95,20.57980997]
[1724802109677,0.25098,148.04,147.95,13.5109733]
[1724802110771,0.25098,148.04,147.97,13.5109733]
[1724802111560,0.25098,148.04,147.93,7.0701192]
[1724802111561,35.5285733,148.03,147.93,7.0701192]
[1724802111755,0.12549,148.02,147.94,13.5109733]
[1724802111956,0.25098,148.02,147.94,13.5109733]
[1724802112153,35.5285733,148.01,147.9,27.13574784]
[1724802112379,0.25098,148.0,147.92,13.5109733]
[1724802113271,0.25098,148.0,147.94,13.5109733]
[1724802113480,22.0176,148.01,147.96,13.5109733]
[1724802117561,22.0176,148.01,147.97,45.0]
[1724802117762,22.0176,148.01,147.98,13.5109733]
[1724802118279,22.0176,148.01,147.97,45.0]
[1724802118487,22.0176,148.01,147.97,58.5109733]
[1724802118677,22.0176,148.01,147.95,13.5109733]
[1724802119358,22.0176,148.01,147.99,13.5109733]
[1724802119678,22.0176,148.01,147.97,13.5109733]
[1724802121284,22.0176,148.01,147.95,13.5109733]
[1724802122158,22.0176,148.01,147.89,7.07200223]
[1724802122484,0.12549,148.0,147.92,13.5109733]
[1724802122669,0.12549,148.0,147.93,45.0]
[1724802123515,0.25098,148.0,147.93,45.0]
[1724802123991,0.25098,148.0,147.92,13.5109733]
[1724802124369,0.25098,148.0,147.89,7.07200223]
[1724802124567,0.25098,148.0,147.92,13.5109733]
[1724802125892,0.25098,148.0,147.9,13.5109733]
[1724802126071,16.6283,147.97,147.9,13.5109733]
[1724802126576,16.6283,147.97,147.92,13.5109733]
[1724802127391,16.6283,147.97,147.94,13.5109733]
[1724802128377,16.6283,147.97,147.9,13.5109733]
[1724802128687,16.6283,147.97,147.91,45.0]
[1724802128884,16.6283,147.97,147.9,13.5109733]
[1724802129275,16.6283,147.97,147.88,7.07270852]
[1724802129476,13.7619533,147.96,147.88,13.5109733]
[1724802129697,13.7619533,147.96,147.86,7.07396825]
[1724802129698,6.5832,147.95,147.86,7.07396825]
[1724802129872,15.385,147.93,147.86,7.07396825]
[1724802132874,0.25098,147.92,147.86,7.07396825]
[1724802134201,0.25098,147.92,147.83,33.85745098]
[1724802134497,0.25098,147.92,147.83,40.93302916]
[1724802134705,6.0481,147.91,147.84,45.0]
[1724802137478,6.0481,147.91,147.81,33.85745098]
[1724802137709,6.0481,147.91,147.82,45.0]
[1724802138381,6.0481,147.91,147.83,33.85745098]
[1724802142281,6.0481,147.91,147.85,33.85745098]
[1724802145107,6.0481,147.91,147.86,0.58169033]
[1724802146506,6.0481,147.91,147.85,33.85745098]
[1724802146809,6.0481,147.91,147.87,33.85745098]
[1724802146993,6.0481,147.91,147.88,45.0]
[1724802150914,6.0481,147.91,147.84,33.85745098]
[1724802151117,6.0481,147.91,147.82,33.85745098]
[1724802151408,6.0481,147.91,147.81,7.07570611]
[1724802151911,0.12549,147.9,147.81,7.07570611]
[1724802152211,16.5418,147.89,147.81,7.07570611]
[1724802152904,16.5418,147.89,147.84,33.85745098]
[1724802153203,16.5418,147.89,147.81,7.07570611]
[1724802153204,6.0481,147.91,147.86,33.85745098]
[1724802153386,6.0481,147.91,147.87,45.0]
[1724802155214,6.0481,147.91,147.86,33.85745098]
[1724802155426,6.0481,147.91,147.84,33.85745098]
[1724802155716,6.0481,147.91,147.85,45.0]
[1724802156410,6.0481,147.91,147.86,33.85745098]
[1724802156597,6.0481,147.91,147.87,45.0]
[1724802157303,6.0481,147.91,147.86,33.85745098]
[1724802158414,6.0481,147.91,147.87,3.51416059]
[1724802158597,6.0481,147.91,147.86,33.85745098]
[1724802158788,6.0481,147.91,147.87,3.51419552]
[1724802160225,6.0481,147.91,147.87,48.51419552]
[1724802160520,6.0481,147.91,147.87,45.0]
[1724802161091,6.0481,147.91,147.81,7.07570611]
[1724802161296,6.0481,147.91,147.81,33.85745098]
[1724802161506,0.12549,147.9,147.81,33.85745098]
[1724802163011,0.12549,147.9,147.82,0.38922725]
[1724802163217,0.12549,147.9,147.81,33.85745098]
[1724802163418,15.1177,147.89,147.81,33.85745098]
[1724802163793,15.1177,147.89,147.8,7.07569436]
[1724802164011,6.0087,147.88,147.8,7.07569436]
[1724802164401,0.25098,147.87,147.77,5.40700595]
[1724802164600,0.25098,147.87,147.75,33.85745098]
[1724802164807,0.25098,147.87,147.77,7.07654428]
[1724802165004,16.042,147.86,147.77,7.07654428]
[1724802165205,0.25098,147.85,147.77,7.07654428]
[1724802165404,6.2174,147.84,147.77,7.07654428]
[1724802166209,15.0795,147.83,147.77,7.07654428]
[1724802166523,15.33048,147.83,147.73,5.85254484]
[1724802166706,15.33048,147.83,147.74,7.07771963]
[1724802167532,35.65497823,147.85,147.74,7.07771963]
[1724802167533,16.0031,147.8,147.74,7.07771963]
[1724802167699,6.1254,147.79,147.7,33.85745098]
[1724802167907,6.25089,147.79,147.7,40.93672244]
[1724802168209,6.25089,147.79,147.7,7.07927146]
[1724802168628,6.25089,147.79,147.7,40.93672244]
[1724802170510,6.25089,147.79,147.71,45.0]
[1724802171118,6.1254,147.79,147.72,33.85745098]
[1724802171317,6.1254,147.79,147.73,45.0]
[1724802173013,6.1254,147.79,147.7,40.93672244]
[1724802173208,0.25098,147.78,147.71,45.0]
[1724802177231,6.1254,147.79,147.72,33.85745098]
[1724802177533,6.1254,147.79,147.73,45.0]
[1724802177712,6.1254,147.79,147.76,33.85745098]
[1724802179633,6.1254,147.79,147.77,45.0]
[1724802183932,6.1254,147.79,147.72,40.93500012]
[1724802184514,6.1254,147.79,147.74,33.85745098]
[1724802185938,6.1254,147.79,147.75,45.0]
[1724802186125,6.1254,147.79,147.74,33.85745098]
[1724802186632,6.1254,147.79,147.75,45.0]
[1724802186823,6.1254,147.79,147.74,33.85745098]
[1724802187741,6.1254,147.79,147.72,40.93500012]
[1724802193416,6.1254,147.79,147.72,7.07754914]
[1724802193640,0.12549,147.78,147.7,33.85745098]
[1724802193828,0.12549,147.78,147.72,33.85745098]
[1724802194029,0.25098,147.78,147.72,33.85745098]
[1724802195075,0.25098,147.78,147.7,40.93604325]
[1724802196440,16.3305,147.77,147.7,40.93604325]
[1724802197735,16.3305,147.77,147.72,33.85745098]
[1724802198072,16.3305,147.77,147.74,33.85745098]
[1724802200147,6.1254,147.79,147.71,45.0]
[1724802200148,6.1254,147.79,147.76,33.85745098]
[1724802200357,6.1254,147.79,147.78,33.85745098]
[1724802200539,15.5305,147.81,147.78,33.85745098]
[1724802200980,6.3575,147.82,147.78,33.85745098]
[1724802201256,15.4988,147.85,147.8,33.85745098]
[1724802201425,15.4988,147.85,147.79,45.0]
[1724802201426,15.4988,147.85,147.82,33.85745098]
[1724802201834,15.4988,147.85,147.8,33.85745098]
[1724802202050,15.4988,147.85,147.79,45.0]
[1724802202051,15.4988,147.85,147.78,33.85745098]
[1724802204832,15.4988,147.85,147.79,45.0]
[1724802205823,15.4988,147.85,147.82,33.85745098]
[1724802207145,15.4988,147.85,147.78,33.85745098]
[1724802208031,15.4988,147.85,147.8,33.85745098]
[1724802208627,15.4988,147.85,147.79,45.0]
[1724802208824,15.4988,147.85,147.78,45.0]
[1724802211742,0.12549,147.84,147.77,33.85745098]
[1724802212057,0.25098,147.84,147.77,33.85745098]
[1724802213358,15.4988,147.85,147.77,33.85745098]
[1724802213556,15.4988,147.85,147.79,33.85745098]
[1724802213738,15.4988,147.85,147.77,33.85745098]
[1724802213933,15.4988,147.85,147.78,45.0]
[1724802214136,15.4988,147.85,147.77,33.85745098]
[1724802214437,0.25098,147.84,147.77,33.85745098]
[1724802216859,0.25098,147.84,147.75,40.12171552]
[1724802217040,22.1359,147.83,147.76,1.96372539]
[1724802217360,22.1359,147.83,147.74,1.96372539]
[1724802217361,0.25098,147.82,147.74,1.96372539]
[1724802217569,0.25098,147.82,147.73,40.93736868]
[1724802217864,0.25098,147.82,147.74,1.96531918]
[1724802218159,0.25098,147.82,147.73,40.93736868]
[1724802218352,0.25098,147.82,147.74,45.0]
[1724802219466,22.1618,147.81,147.73,7.0799177]
[1724802219759,0.25098,147.8,147.73,7.0799177]
[1724802219937,0.25098,147.8,147.73,33.85745098]
[1724802220733,0.25098,147.8,147.74,1.35345893]
[1724802221140,22.1618,147.81,147.74,46.35345893]
[1724802221950,22.1618,147.81,147.75,33.85745098]
[1724802222143,22.1618,147.81,147.74,46.35345893]
[1724802222144,22.1618,147.81,147.77,33.85745098]
[1724802224067,22.1618,147.81,147.78,1.35316247]
[1724802224876,22.1618,147.81,147.72,7.07953705]
[1724802225163,22.1618,147.81,147.7,33.85745098]
[1724802225164,0.25098,147.8,147.7,33.85745098]
[1724802225354,0.25098,147.8,147.72,7.07788021]
[1724802227447,0.25098,147.8,147.71,3.5312759]
[1724802227772,0.25098,147.8,147.71,55.60923963]
[1724802227953,0.25098,147.8,147.71,52.07796373]
[1724802233062,0.25098,147.8,147.71,45.0]
[1724802234064,0.25098,147.8,147.71,52.07794135]
[1724802234265,22.2556,147.79,147.71,52.07794135]
[1724802234559,0.25098,147.78,147.72,1.34961802]
[1724802235564,0.25098,147.78,147.71,45.0]
[1724802236269,0.25098,147.78,147.71,52.07792366]
[1724802237965,0.25098,147.78,147.71,45.0]
[1724802239868,22.2556,147.79,147.72,33.85745098]
[1724802240061,22.2556,147.79,147.74,13.56443367]
[1724802242374,22.2556,147.79,147.72,13.56443367]
[1724802242570,22.2556,147.79,147.74,13.56443367]
[1724802243574,22.2556,147.79,147.75,1.32181872]
[1724802243778,22.2556,147.79,147.74,13.56443367]
[1724802245286,21.673,147.92,147.77,13.56443367]
[1724802245569,21.673,147.92,147.87,13.56443367]
[1724802246647,21.673,147.92,147.86,13.56443367]
[1724802246851,35.23743367,147.92,147.83,13.56443367]
[1724802247069,0.25098,147.91,147.83,13.56443367]
[1724802247369,0.25098,147.91,147.82,13.56443367]
[1724802247757,20.25098,147.91,147.82,13.56443367]
[1724802247958,20.25098,147.91,147.8,33.87489491]
[1724802248274,20.25098,147.91,147.81,45.0]
[1724802255978,22.7194,147.89,147.81,45.0]
[1724802256274,0.12549,147.88,147.8,33.87489491]
[1724802256482,0.25098,147.88,147.8,33.87489491]
[1724802257367,22.1695,147.87,147.78,33.87489491]
[1724802257656,0.12549,147.86,147.78,33.87489491]
[1724802257958,0.25098,147.86,147.78,33.87489491]
[1724802258479,0.25098,147.86,147.76,33.87489491]
[1724802259284,0.25098,147.86,147.77,45.0]
[1724802263680,22.4756,147.85,147.76,33.87489491]
[1724802263889,0.25098,147.84,147.74,33.87489491]
[1724802264579,0.25098,147.84,147.76,33.87489491]
[1724802268092,0.25098,147.84,147.78,13.5576168]
[1724802271775,22.4756,147.85,147.78,13.5576168]
[1724802271985,22.4756,147.85,147.73,7.07849892]
[1724802272186,22.4756,147.85,147.79,13.5576168]
[1724802273488,0.25098,147.84,147.79,13.5576168]
[1724802275288,0.25098,147.84,147.77,13.5576168]
[1724802278591,13.8085968,147.84,147.75,13.5576168]
[1724802280885,0.25098,147.84,147.75,13.5576168]
[1724802282097,0.25098,147.84,147.77,13.5576168]
[1724802283291,22.4756,147.85,147.83,13.5576168]
[1724802285596,22.7791,147.92,147.83,13.5576168]
[1724802285770,22.7791,147.92,147.84,45.0]
[1724802285978,22.7791,147.92,147.87,13.5576168]
[1724802286282,22.7791,147.92,147.84,99.2304672]
[1724802286483,22.7791,147.92,147.89,13.5576168]
[1724802288800,22.7791,147.92,147.84,45.0]
[1724802288999,22.7791,147.92,147.86,13.5576168]
[1724802292280,22.7791,147.92,147.88,13.5576168]
[1724802293406,22.7791,147.92,147.89,0.8628512]
[1724802293985,22.7791,147.92,147.89,1.35183581]
[1724802295309,22.7791,147.92,147.88,13.5576168]
[1724802297694,0.25098,147.91,147.79,6.5179]
[1724802297887,0.25098,147.91,147.82,13.5576168]
[1724802298298,0.25098,147.91,147.84,13.5576168]
[1724802302704,22.2014,147.89,147.81,13.5576168]
[1724802303035,13.8085968,147.88,147.74,15.1479]
[1724802303181,13.8085968,147.88,147.78,13.5576168]
[1724802303182,0.25098,147.88,147.78,13.5576168]
[1724802303387,33.8085968,147.88,147.78,13.5576168]
[1724802306211,20.25098,147.88,147.77,33.88669806]
[1724802306414,20.25098,147.88,147.78,45.0]
[1724802307090,6.4347,147.87,147.77,33.88669806]
[1724802307292,15.1934,147.85,147.77,33.88669806]
[1724802307799,15.1934,147.85,147.78,0.71504477]
[1724802308188,15.1934,147.85,147.77,33.88669806]
[1724802308700,15.1934,147.85,147.78,45.0]
[1724802309013,15.1934,147.85,147.79,33.88669806]
[1724802309209,15.1934,147.85,147.81,33.88669806]
[1724802309918,6.4347,147.87,147.81,33.88669806]
[1724802310718,6.4347,147.87,147.82,0.73462]
[1724802311211,6.4347,147.87,147.81,33.88669806]
[1724802311417,6.4347,147.87,147.8,45.0]
[1724802312615,6.4347,147.87,147.77,33.88669806]
[1724802312818,0.25098,147.86,147.71,15.6847912]
[1724802313020,33.88669806,147.84,147.74,7.07830123]
[1724802313192,33.88669806,147.84,147.73,33.88669806]
[1724802313193,20.0,147.83,147.73,33.88669806]
[1724802313517,20.12549,147.83,147.73,33.88669806]
[1724802313900,0.12549,147.83,147.73,33.88669806]
[1724802314113,0.25098,147.83,147.73,33.88669806]
[1724802314319,22.5115,147.85,147.77,33.88669806]
[1724802315517,22.5115,147.85,147.75,33.88669806]
[1724802315712,0.25098,147.84,147.76,45.0]
[1724802316717,0.25098,147.84,147.75,33.88669806]
[1724802316910,0.25098,147.84,147.73,33.88669806]
[1724802317217,0.25098,147.84,147.72,7.08092477]
[1724802317218,54.13767806,147.84,147.72,7.08092477]
[1724802318202,54.13767806,147.84,147.73,45.0]
[1724802318403,20.25098,147.84,147.73,45.0]
[1724802318624,0.25098,147.84,147.75,33.88669806]
[1724802318837,0.25098,147.84,147.76,45.0]
[1724802320133,0.12549,147.84,147.76,45.0]
[1724802320335,22.5115,147.85,147.76,45.0]
[1724802321909,22.5115,147.85,147.77,33.88669806]
[1724802322111,22.5115,147.85,147.79,33.88669806]
[1724802322317,22.5115,147.85,147.81,33.88669806]
[1724802323028,22.5115,147.85,147.82,0.63959263]
[1724802323231,22.5115,147.85,147.82,1.35234495]
[1724802323538,22.5115,147.85,147.82,46.35234495]
[1724802323706,22.5115,147.85,147.81,33.88669806]
[1724802324037,22.5115,147.85,147.79,33.88669806]
[1724802324211,22.5115,147.85,147.8,45.0]
[1724802325127,22.5115,147.85,147.74,23.72846699]
[1724802325128,22.5115,147.85,147.77,33.88669806]
[1724802334131,22.5115,147.85,147.78,1.3503629]
[1724802334720,0.25098,147.84,147.75,33.88669806]
[1724802334918,0.25098,147.84,147.75,78.88669806]
[1724802337679,21.7643,147.83,147.72,33.88669806]
[1724802337940,0.12549,147.82,147.73,23.51182867]
[1724802338136,0.12549,147.82,147.75,13.56070684]
[1724802338137,0.25098,147.82,147.75,13.56070684]
[1724802341430,0.25098,147.82,147.72,7.08007371]
[1724802341431,15.2325,147.8,147.72,7.08007371]
[1724802341627,6.3872,147.79,147.72,7.08007371]
[1724802341832,6.63818,147.79,147.72,7.08007371]
[1724802342037,6.63818,147.79,147.69,13.56070684]
[1724802343746,15.9722,147.78,147.69,13.56070684]
[1724802344139,15.9722,147.78,147.7,65.0]
[1724802345235,15.9722,147.78,147.7,45.0]
[1724802346146,29.53290684,147.78,147.67,7.08207777]
[1724802346441,6.5408,147.76,147.68,13.56070684]
[1724802347236,6.5408,147.76,147.67,7.08207777]
[1724802347237,16.6346,147.75,147.67,7.08207777]
[1724802347444,30.19530684,147.75,147.67,7.08207777]
[1724802347619,30.19530684,147.75,147.66,5.46764973]
[1724802347819,30.19530684,147.75,147.67,13.56070684]
[1724802350945,6.27219,147.74,147.66,1.95621485]
[1724802351131,16.5647,147.72,147.66,1.95621485]
[1724802351320,0.12549,147.71,147.66,1.95621485]
[1724802351939,0.12549,147.71,147.65,7.08361832]
[1724802352936,16.5647,147.72,147.65,7.08361832]
[1724802353139,16.5647,147.72,147.66,34.54026897]
[1724802354234,16.5647,147.72,147.68,33.95508469]
[1724802354443,16.5647,147.72,147.69,1.04778869]
[1724802354750,16.5647,147.72,147.69,46.04778869]
[1724802355528,16.5647,147.72,147.7,1.04903613]
[1724802355729,16.5647,147.72,147.71,1.09467356]
[1724802356549,6.1467,147.73,147.71,1.09467356]
[1724802356725,6.1467,147.73,147.71,45.0]
[1724802357346,6.1467,147.73,147.71,46.09614504]
[1724802357527,6.1467,147.73,147.7,33.95508469]
[1724802358145,6.1467,147.73,147.68,33.95508469]
[1724802358357,6.1467,147.73,147.69,65.12549]
[1724802361060,15.4234,147.76,147.69,65.12549]
[1724802370059,15.4234,147.76,147.69,45.12549]
[1724802370948,15.4234,147.76,147.66,33.95508469]
[1724802372043,15.4234,147.76,147.69,13.5702471]
[1724802372361,15.4234,147.76,147.71,13.5702471]
[1724802372561,15.4234,147.76,147.72,45.12549]
[1724802373561,15.4234,147.76,147.71,13.5702471]
[1724802373769,15.4234,147.76,147.65,14.78095918]
[1724802373770,15.4234,147.76,147.69,13.5702471]
[1724802374068,15.4234,147.76,147.7,45.12549]
[1724802377270,15.4234,147.76,147.71,13.5702471]
[1724802377471,15.4234,147.76,147.73,13.5702471]
[1724802378570,15.4234,147.76,147.71,13.5702471]
[1724802382480,15.4234,147.76,147.73,13.5702471]
[1724802382972,15.4234,147.76,147.74,1.35082728]
[1724802385965,6.2861,147.77,147.75,13.5702471]
[1724802386275,6.0232,147.82,147.76,1.35064443]
[1724802386476,6.0232,147.82,147.78,13.5702471]
[1724802388794,6.0232,147.82,147.76,13.5702471]
[1724802389289,6.0232,147.82,147.74,5.46559366]
[1724802389290,6.0232,147.82,147.78,13.5702471]
[1724802389496,6.0232,147.82,147.79,1.35297443]
[1724802389786,6.0232,147.82,147.78,13.5702471]
[1724802390694,6.0232,147.82,147.79,1.35309404]
[1724802391071,6.0232,147.82,147.78,13.5702471]
[1724802395488,6.0232,147.82,147.76,13.5702471]
[1724802395697,6.0232,147.82,147.77,45.0]
[1724802397499,6.0232,147.82,147.78,13.5702471]
[1724802398190,6.0232,147.82,147.79,0.59653297]
[1724802398392,16.5798,147.83,147.8,14.16684537]
[1724802398691,16.5798,147.83,147.8,13.5702471]
[1724802398894,16.5798,147.83,147.81,1.35285428]
[1724802401375,6.2621,147.86,147.82,13.5702471]